[Event "FIDE WCCC Open-08 2024"]
[Site "Montesilvano"]
[Date "2024.11.25"]
[Round "10.15"]
[White "Agar, Garig"]
[Black "Singh, Ian Avery"]
[Result "1/2-1/2"]
[Annotator "NA RC"]
[ECO "D30"]
[WhiteElo "1534"]
[BlackElo "1713"]
[PlyCount "150"]
[EventDate "2024.11.18"]
[EventType "swiss"]
[EventCountry "ITA"]
[SourceTitle "playchess.com"]
[Source "ChessBase"]
[SourceQuality "1"]
[TimeControl "5400+30"]

1. d4 {[%emt 0:00:26]} d5 {[%emt 0:00:06]} 2. c4 {[%emt 0:00:13]} c6 {[%emt 0:00:04]} 3. Nf3 {[%emt 0:00:17]} Nf6 {[%emt 0:00:06]} 4. e3 {[%emt 0:00:10]} e6 {[%emt 0:00:23]} 5. b3 {[%emt 0:00:09]} Nbd7 {[%emt 0:00:57]} 6. Bd3 {[%emt 0:00:14]} Bd6 {[%emt 0:00:28]} 7. Bb2 {[%emt 0:00:20]} O-O {[%emt 0:00:15]} 8. O-O {[%emt 0:00:25]} Qe7 {[%emt 0:00:24]} 9. Nbd2 {[%emt 0:00:27]} b6 {[%emt 0:02:21]} 10. e4 {[%emt 0:00:58]} dxe4 {[%emt 0:07:46]} 11. Nxe4 {[%emt 0:00:22]} Bc7 {[%emt 0:00:26]} 12. Re1 {[%emt 0:01:05]} Bb7 {[%emt 0:04:03]} 13. Qc2 {[%emt 0:01:55]} Nxe4 {[%emt 0:02:48]} 14. Bxe4 {[%emt 0:00:11]} Nf6 {[%emt 0:02:00]} 15. Bd3 {[%emt 0:01:42]} Rac8 {[%emt 0:07:04]} 16. Ne5 {[%emt 0:01:01]} Rfd8 {[%emt 0:02:23]} 17. Rad1 {[%emt 0:02:29]} c5 {[%emt 0:08:03]} 18. dxc5 {[%emt 0:04:51]} bxc5 {[%emt 0:01:41]} 19. Qc3 {[%emt 0:03:49]} Rd4 {[%emt 0:06:28]} 20. Qc1 {[%emt 0:06:00]} Bxe5 {[%emt 0:09:45]} 21. Rxe5 {[%emt 0:02:16]} Rg4 {[%emt 0:01:00]} 22. Rg5 {[%emt 0:01:10]} Rxg5 {[%emt 0:08:24]} 23. Qxg5 {[%emt 0:00:19]} h6 {[%emt 0:01:45]} 24. Qh4 {[%emt 0:01:08]} Kf8 {[%emt 0:10:37]} 25. Re1 {[%emt 0:07:02]} Rd8 {[%emt 0:01:11]} 26. Re3 {[%emt 0:08:07]} Ng8 {[%emt 0:12:37]} 27. Qg4 {[%emt 0:01:34]} Qg5 {[%emt 0:00:20]} 28. Qxg5 {[%emt 0:00:25]} hxg5 {[%emt 0:00:06]} 29. Ba3 {[%emt 0:00:12]} Ne7 {[%emt 0:02:29]} 30. Bxc5 {[%emt 0:00:11]} Ke8 {[%emt 0:03:52]} 31. Kf1 {[%emt 0:01:25]} Rc8 {[%emt 0:01:14]} 32. Bxe7 {[%emt 0:00:33]} Kxe7 {[%emt 0:00:01]} 33. Be4 {[%emt 0:00:12]} Bxe4 {[%emt 0:00:28]} 34. Rxe4 {[%emt 0:00:05]} Rc7 {[%emt 0:00:42]} 35. Rd4 {[%emt 0:00:35]} a5 {[%emt 0:00:16]} 36. Ke2 {[%emt 0:00:43]} Rb7 {[%emt 0:01:27]} 37. Kd3 {[%emt 0:01:19]} Rc7 {[%emt 0:02:32]} 38. a3 {[%emt 0:00:29]} Rb7 {[%emt 0:00:37]} 39. Kc3 {[%emt 0:00:08]} f5 {[%emt 0:00:32]} 40. c5 {[%emt 0:03:01]} e5 {[%emt 0:00:13]} 41. Rd5 {[%emt 0:00:06]} Ke6 {[%emt 0:00:09]} 42. Rd6+ {[%emt 0:00:06]} Ke7 {[%emt 0:00:06]} 43. Ra6 {[%emt 0:00:22]} e4 {[%emt 0:00:17]} 44. Kd4 {[%emt 0:01:27]} Rxb3 {[%emt 0:00:11]} 45. Rxa5 {[%emt 0:00:13]} Rb2 {[%emt 0:00:12]} 46. Ra7+ {[%emt 0:01:50]} Ke6 {[%emt 0:00:38]} 47. Rxg7 {[%emt 0:00:07]} Rxf2 {[%emt 0:04:33]} 48. Rxg5 {[%emt 0:00:11]} Ra2 {[%emt 0:00:00]} 49. c6 {[%emt 0:04:51]} Rxa3 {[%emt 0:00:00]} 50. c7 {[%emt 0:00:20]} Ra8 {[%emt 0:00:00]} 51. Rg6+ {[%emt 0:00:33]} Kd7 {[%emt 0:00:00]} 52. Rf6 {[%emt 0:00:27]} Ra2 {[%emt 0:00:00]} 53. Rf7+ {[%emt 0:06:58]} Kc8 {[%emt 0:00:00]} 54. Rg7 {[%emt 0:00:43]} Ra3 {[%emt 0:01:03]} 55. h4 {[%emt 0:01:45]} Rd3+ {[%emt 0:00:24]} 56. Kc4 {[%emt 0:00:15]} Rd1 {[%emt 0:00:16]} 57. h5 {[%emt 0:00:34]} e3 {[%emt 0:01:59]} 58. h6 {[%emt 0:00:40]} e2 {[%emt 0:00:29]} 59. h7 {[%emt 0:40:34]} Rh1 {[%emt 0:00:04]} 60. Re7 {[%emt 0:00:00]} Rxh7 {[%emt 0:00:44]} 61. Rxe2 {[%emt 0:00:00]} Kxc7 {[%emt 0:00:15]} 62. Rf2 {[%emt 0:00:00]} Kd6 {[%emt 0:00:29]} 63. Rxf5 {[%emt 0:00:00]} Ke6 {[%emt 0:00:11]} 64. Rc5 {[%emt 0:00:00]} Rh2 {[%emt 0:00:11]} 65. Rg5 {[%emt 0:00:00]} Kf6 {[%emt 0:00:06]} 66. Rg8 {[%emt 0:00:00]} Kf7 {[%emt 0:00:05]} 67. Rg4 {[%emt 0:00:00]} Rh1 {[%emt 0:00:03]} 68. Kd5 {[%emt 0:00:00]} Re1 {[%emt 0:00:22]} 69. Re4 {[%emt 0:00:00]} Rg1 {[%emt 0:00:05]} 70. Re2 {[%emt 0:00:00]} Kg6 {[%emt 0:00:10]} 71. Ke4 {[%emt 0:00:00]} Ra1 {[%emt 0:00:06]} 72. g4 {[%emt 0:00:00]} Kg5 {[%emt 0:00:08]} 73. Kf3 {[%emt 0:07:00]} Ra3+ {[%emt 0:00:05]} 74. Re3 {[%emt 0:00:00]} Rxe3+ {[%emt 0:00:02]} 75. Kxe3 {[%emt 0:00:00]} Kxg4 {[%emt 0:06:43]} 1/2-1/2

[Event "FIDE WCCC Open-08 2024"]
[Site "Montesilvano"]
[Date "2024.11.25"]
[Round "10.17"]
[White "Nguyen Phuc Cao Danh"]
[Black "Stankowski, Wiktor"]
[Result "0-1"]
[Annotator "NA RC"]
[ECO "B92"]
[WhiteElo "1627"]
[BlackElo "1617"]
[PlyCount "102"]
[EventDate "2024.11.18"]
[EventType "swiss"]
[EventCountry "ITA"]
[SourceTitle "playchess.com"]
[Source "ChessBase"]
[SourceQuality "1"]
[TimeControl "5400+30"]

1. e4 {[%emt 0:00:05]} c5 {[%emt 0:00:11]} 2. Nf3 {[%emt 0:00:07]} d6 {[%emt 0:00:37]} 3. d4 {[%emt 0:00:20]} cxd4 {[%emt 0:00:32]} 4. Nxd4 {[%emt 0:00:10]} Nf6 {[%emt 0:00:45]} 5. Nc3 {[%emt 0:00:19]} a6 {[%emt 0:00:31]} 6. Be3 {[%emt 0:00:20]} e5 {[%emt 0:00:56]} 7. Nb3 {[%emt 0:00:14]} Be6 {[%emt 0:01:01]} 8. f3 {[%emt 0:00:54]} Be7 {[%emt 0:03:07]} 9. Be2 {[%emt 0:00:34]} O-O {[%emt 0:02:38]} 10. Qd2 {[%emt 0:00:57]} Qc7 {[%emt 1:25:12]} 11. O-O-O {[%emt 0:01:54]} Rc8 {[%emt 0:00:00]} 12. g4 {[%emt 0:00:41]} d5 {[%emt 0:00:00]} 13. exd5 {[%emt 0:01:23]} Nxd5 {[%emt 0:00:00]} 14. Nxd5 {[%emt 0:00:12]} Bxd5 {[%emt 0:00:00]} 15. Kb1 {[%emt 0:01:13]} Be6 {[%emt 0:00:00]} 16. Bd3 {[%emt 0:02:03]} a5 {[%emt 0:00:00]} 17. Qf2 {[%emt 0:01:25]} Nd7 {[%emt 0:00:00]} 18. f4 {[%emt 0:03:44]} a4 {[%emt 0:00:00]} 19. Nd2 {[%emt 0:25:32]} a3 {[%emt 0:00:00]} 20. Nb3 {[%emt 0:05:09]} axb2 {[%emt 0:00:00]} 21. f5 {[%emt 0:04:23]} Bd5 {[%emt 0:00:00]} 22. Bb5 {[%emt 0:25:59]} Bh4 {[%emt 0:00:00]} 23. Qe2 {[%emt 0:01:40]} Nf6 {[%emt 0:00:00]} 24. c4 {[%emt 0:02:32]} Be4+ {[%emt 0:00:00]} 25. Kxb2 {[%emt 0:00:34]} Bxh1 {[%emt 0:00:00]} 26. Rxh1 {[%emt 0:00:12]} Ne4 {[%emt 0:00:00]} 27. c5 {[%emt 0:02:14]} Rxa2+ {[%emt 0:00:00]} 28. Kxa2 {[%emt 0:00:10]} Nc3+ {[%emt 0:00:00]} 29. Kb2 {[%emt 0:00:13]} Nxe2 {[%emt 0:00:00]} 30. Bxe2 {[%emt 0:00:02]} Qc6 {[%emt 0:00:00]} 31. Rd1 {[%emt 0:00:52]} Rd8 {[%emt 0:00:00]} 32. Rc1 {[%emt 0:00:46]} Qe4 {[%emt 0:00:00]} 33. Rc3 {[%emt 0:00:31]} Be1 {[%emt 0:00:00]} 34. Rc1 {[%emt 0:00:29]} Qxe3 {[%emt 0:00:00]} 35. Rxe1 {[%emt 0:00:07]} Qf2 {[%emt 0:00:00]} 36. Rc1 {[%emt 0:00:08]} Qxe2+ {[%emt 0:00:00]} 37. Rc2 {[%emt 0:00:07]} Qxg4 {[%emt 0:00:00]} 38. f6 {[%emt 0:00:24]} gxf6 {[%emt 0:00:00]} 39. Rc3 {[%emt 0:00:14]} e4 {[%emt 0:00:00]} 40. Rg3 {[%emt 0:00:13]} Qxg3 {[%emt 0:00:00]} 41. hxg3 {[%emt 0:00:10]} Rd3 {[%emt 0:00:00]} 42. Kc2 {[%emt 0:00:26]} Rxg3 {[%emt 0:00:00]} 43. Na5 {[%emt 0:00:09]} Rg2+ {[%emt 0:00:00]} 44. Kc3 {[%emt 0:00:22]} e3 {[%emt 0:00:00]} 45. Nxb7 {[%emt 0:00:44]} Rb2 {[%emt 0:00:00]} 46. Kxb2 {[%emt 0:01:11]} e2 {[%emt 0:00:00]} 47. Kb3 {[%emt 0:00:08]} e1=Q {[%emt 0:00:00]} 48. Nd6 {[%emt 0:00:25]} h5 {[%emt 0:00:00]} 49. Kc4 {[%emt 0:00:24]} h4 {[%emt 0:00:00]} 50. c6 {[%emt 0:00:22]} Qe6+ {[%emt 0:00:00]} 51. Kc5 {[%emt 0:00:10]} Qe5+ {[%emt 0:00:00]} 0-1

[Event "FIDE WCCC Open-08 2024"]
[Site "Montesilvano"]
[Date "2024.11.25"]
[Round "10.18"]
[White "Kapitanski, Furion"]
[Black "Wang, Yihan(Ah)"]
[Result "0-1"]
[Annotator "NA RC"]
[ECO "B42"]
[WhiteElo "1707"]
[BlackElo "1630"]
[PlyCount "66"]
[EventDate "2024.11.18"]
[EventType "swiss"]
[EventCountry "ITA"]
[SourceTitle "playchess.com"]
[Source "ChessBase"]
[SourceQuality "1"]
[TimeControl "5400+30"]

1. e4 {[%emt 0:00:01]} c5 {[%emt 0:00:12]} 2. Nf3 {[%emt 0:00:07]} e6 {[%emt 0:00:08]} 3. d4 {[%emt 0:00:03]} cxd4 {[%emt 0:00:06]} 4. Nxd4 {[%emt 0:00:07]} a6 {[%emt 0:00:07]} 5. Bd3 {[%emt 0:00:06]} Qc7 {[%emt 0:01:32]} 6. O-O {[%emt 0:00:12]} Nf6 {[%emt 0:01:47]} 7. Qe2 {[%emt 0:00:09]} d6 {[%emt 0:01:04]} 8. c4 {[%emt 0:00:11]} Be7 {[%emt 0:04:43]} 9. Nc3 {[%emt 0:00:57]} O-O {[%emt 0:05:36]} 10. f4 {[%emt 0:00:11]} Nbd7 {[%emt 0:03:03]} 11. Kh1 {[%emt 0:00:28]} b6 {[%emt 0:02:07]} 12. Bd2 {[%emt 0:00:22]} Bb7 {[%emt 0:09:53]} 13. Rae1 {[%emt 0:01:51]} Rad8 {[%emt 0:14:43]} 14. b4 {[%emt 0:04:24]} Rfe8 {[%emt 0:03:29]} 15. a3 {[%emt 0:09:02]} Bf8 {[%emt 0:03:50]} 16. e5 {[%emt 0:08:07]} dxe5 {[%emt 0:02:16]} 17. fxe5 {[%emt 0:00:09]} Nxe5 {[%emt 0:03:53]} 18. Bf4 {[%emt 0:28:44]} Bd6 {[%emt 0:09:04]} 19. Bxe5 {[%emt 0:23:55]} Bxe5 {[%emt 0:01:02]} 20. Qxe5 {[%emt 0:00:09]} Qxe5 {[%emt 0:00:45]} 21. Rxe5 {[%emt 0:00:26]} Rxd4 {[%emt 0:00:56]} 22. Be2 {[%emt 0:03:25]} Ng4 {[%emt 0:05:18]} 23. Rg5 {[%emt 0:06:48]} Ne3 {[%emt 0:01:43]} 24. Ra1 {[%emt 0:00:14]} Nxc4 {[%emt 0:08:00]} 25. b5 {[%emt 0:01:31]} Ra8 {[%emt 0:08:41]} 26. a4 {[%emt 0:05:23]} a5 {[%emt 0:02:00]} 27. Nd1 {[%emt 0:02:02]} Rad8 {[%emt 0:01:29]} 28. Rc1 {[%emt 0:00:41]} Nd6 {[%emt 0:01:08]} 29. Nc3 {[%emt 0:01:12]} Ne4 {[%emt 0:01:17]} 30. Nxe4 {[%emt 0:00:43]} Bxe4 {[%emt 0:00:47]} 31. h3 {[%emt 0:01:58]} f6 {[%emt 0:01:29]} 32. Rg4 {[%emt 0:00:14]} f5 {[%emt 0:00:53]} 33. Rh4 {[%emt 0:00:09]} Bxg2+ {[%emt 0:01:01]} 0-1

[Event "FIDE WCCC Open-08 2024"]
[Site "Montesilvano"]
[Date "2024.11.25"]
[Round "10.19"]
[White "Muratshin, Ramazan"]
[Black "Le, Khai"]
[Result "0-1"]
[Annotator "NA RC"]
[ECO "B73"]
[WhiteElo "1597"]
[BlackElo "1808"]
[PlyCount "72"]
[EventDate "2024.11.18"]
[EventType "swiss"]
[EventCountry "ITA"]
[SourceTitle "playchess.com"]
[Source "ChessBase"]
[SourceQuality "1"]
[TimeControl "5400+30"]

1. e4 {[%emt 0:00:30]} c5 {[%emt 0:03:00]} 2. Nf3 {[%emt 0:00:09]} d6 {[%emt 0:02:29]} 3. d4 {[%emt 0:00:09]} cxd4 {[%emt 0:00:30]} 4. Nxd4 {[%emt 0:00:10]} Nf6 {[%emt 0:01:01]} 5. Nc3 {[%emt 0:00:29]} g6 {[%emt 0:00:50]} 6. Be2 {[%emt 0:00:24]} Bg7 {[%emt 0:00:56]} 7. Be3 {[%emt 1:32:09]} O-O {[%emt 0:01:44]} 8. f4 {[%emt 0:00:00]} Nc6 {[%emt 0:01:16]} 9. Bf3 {[%emt 0:00:00]} Bd7 {[%emt 0:00:29]} 10. O-O {[%emt 0:00:00]} a6 {[%emt 0:01:17]} 11. Qd2 {[%emt 0:00:00]} Rc8 {[%emt 0:02:38]} 12. a4 {[%emt 0:00:00]} Qc7 {[%emt 0:00:37]} 13. Rae1 {[%emt 0:00:00]} Na5 {[%emt 0:01:44]} 14. Be2 {[%emt 0:00:00]} Nc4 {[%emt 0:01:42]} 15. Bxc4 {[%emt 0:00:00]} Qxc4 {[%emt 0:00:08]} 16. a5 {[%emt 0:00:00]} Qb4 {[%emt 0:04:36]} 17. Nb3 {[%emt 0:00:00]} Nxe4 {[%emt 0:02:58]} 18. Nxe4 {[%emt 0:00:00]} Qxe4 {[%emt 0:00:09]} 19. c3 {[%emt 0:00:00]} Qa4 {[%emt 0:02:24]} 20. Nd4 {[%emt 0:00:00]} Qxa5 {[%emt 0:00:44]} 21. f5 {[%emt 0:00:00]} Rce8 {[%emt 0:07:47]} 22. Bh6 {[%emt 0:00:00]} Qb6 {[%emt 0:06:07]} 23. Kh1 {[%emt 0:00:00]} e5 {[%emt 0:00:57]} 24. f6 {[%emt 0:00:00]} exd4 {[%emt 0:01:09]} 25. Bxg7 {[%emt 0:00:00]} dxc3 {[%emt 0:01:40]} 26. Qh6 {[%emt 0:00:00]} Rxe1 {[%emt 0:01:05]} 27. Rxe1 {[%emt 0:00:00]} Qf2 {[%emt 0:00:13]} 28. Rg1 {[%emt 0:00:00]} cxb2 {[%emt 0:01:08]} 29. Bxf8 {[%emt 0:00:00]} Qxg1+ {[%emt 0:00:11]} 30. Kxg1 {[%emt 0:00:00]} b1=Q+ {[%emt 0:00:21]} 31. Kf2 {[%emt 0:00:00]} Qf5+ {[%emt 0:00:06]} 32. Ke1 {[%emt 0:00:00]} Qxf6 {[%emt 0:00:38]} 33. Kd2 {[%emt 0:00:00]} a5 {[%emt 0:00:21]} 34. Kc1 {[%emt 0:00:00]} a4 {[%emt 0:00:15]} 35. g4 {[%emt 0:00:00]} a3 {[%emt 0:00:26]} 36. g5 {[%emt 0:00:00]} Qc3+ {[%emt 0:00:07]} 0-1

[Event "FIDE WCCC Open-08 2024"]
[Site "Montesilvano"]
[Date "2024.11.25"]
[Round "10.20"]
[White "Bausys, Benas"]
[Black "Alloussi, Arian"]
[Result "1-0"]
[Annotator "NA RC"]
[ECO "C68"]
[WhiteElo "1564"]
[BlackElo "1745"]
[PlyCount "167"]
[EventDate "2024.11.18"]
[EventType "swiss"]
[EventCountry "ITA"]
[SourceTitle "playchess.com"]
[Source "ChessBase"]
[SourceQuality "1"]
[TimeControl "5400+30"]

1. e4 {[%emt 0:00:03]} e5 {[%emt 0:00:05]} 2. Nf3 {[%emt 0:00:03]} Nc6 {[%emt 0:00:07]} 3. Bb5 {[%emt 0:00:16]} a6 {[%emt 0:00:06]} 4. Bxc6 {[%emt 0:00:08]} dxc6 {[%emt 0:00:09]} 5. Nc3 {[%emt 0:00:07]} Bg4 {[%emt 0:00:39]} 6. h3 {[%emt 0:00:06]} Bxf3 {[%emt 0:00:09]} 7. Qxf3 {[%emt 0:00:08]} Nf6 {[%emt 0:00:46]} 8. d3 {[%emt 0:00:07]} Bd6 {[%emt 0:03:17]} 9. Bg5 {[%emt 0:02:31]} h6 {[%emt 0:03:30]} 10. Bxf6 {[%emt 0:00:24]} Qxf6 {[%emt 0:01:40]} 11. Qxf6 {[%emt 0:00:12]} gxf6 {[%emt 0:00:38]} 12. O-O-O {[%emt 0:00:19]} h5 {[%emt 0:08:05]} 13. Ne2 {[%emt 0:00:22]} h4 {[%emt 0:01:30]} 14. g4 {[%emt 0:01:34]} O-O-O {[%emt 0:03:40]} 15. Rdf1 {[%emt 0:00:34]} Rdf8 {[%emt 0:08:26]} 16. f4 {[%emt 0:00:32]} Rhg8 {[%emt 0:06:09]} 17. Rf3 {[%emt 0:00:19]} Kd7 {[%emt 0:01:45]} 18. Rhf1 {[%emt 0:00:20]} Ke7 {[%emt 0:05:16]} 19. Nc3 {[%emt 0:03:15]} b6 {[%emt 0:02:29]} 20. Nd1 {[%emt 0:00:55]} Bc5 {[%emt 0:01:25]} 21. c3 {[%emt 0:01:29]} b5 {[%emt 0:03:04]} 22. fxe5 {[%emt 0:05:11]} fxe5 {[%emt 0:01:06]} 23. Rf5 {[%emt 0:00:15]} f6 {[%emt 0:02:27]} 24. Kd2 {[%emt 0:00:49]} Bb6 {[%emt 0:01:36]} 25. Ne3 {[%emt 0:03:47]} Bxe3+ {[%emt 0:01:30]} 26. Kxe3 {[%emt 0:00:52]} c5 {[%emt 0:01:06]} 27. Rh5 {[%emt 0:06:06]} Rh8 {[%emt 0:01:37]} 28. Rff5 {[%emt 0:03:24]} Kf7 {[%emt 0:05:59]} 29. Rxh8 {[%emt 0:01:20]} Rxh8 {[%emt 0:00:37]} 30. g5 {[%emt 0:01:19]} Rg8 {[%emt 0:01:53]} 31. Rxf6+ {[%emt 0:00:11]} Ke7 {[%emt 0:00:30]} 32. Rf5 {[%emt 0:00:14]} Ke6 {[%emt 0:01:15]} 33. Kf3 {[%emt 0:00:26]} Rd8 {[%emt 0:03:01]} 34. Ke2 {[%emt 0:01:22]} Rg8 {[%emt 0:01:26]} 35. b3 {[%emt 0:06:50]} a5 {[%emt 0:01:47]} 36. Ke3 {[%emt 0:04:18]} Rg7 {[%emt 0:01:18]} 37. d4 {[%emt 0:01:29]} cxd4+ {[%emt 0:02:07]} 38. cxd4 {[%emt 0:00:23]} exd4+ {[%emt 0:01:52]} 39. Kxd4 {[%emt 0:58:00]} Rd7+ {[%emt 0:01:20]} 40. Rd5 {[%emt 0:00:00]} Rf7 {[%emt 0:02:58]} 41. Re5+ {[%emt 0:00:00]} Kd6 {[%emt 0:01:11]} 42. Rf5 {[%emt 0:00:00]} c5+ {[%emt 0:01:19]} 43. Rxc5 {[%emt 0:00:00]} Rf2 {[%emt 0:01:52]} 44. e5+ {[%emt 0:00:00]} Kd7 {[%emt 0:01:51]} 45. g6 {[%emt 0:00:00]} Rg2 {[%emt 0:01:48]} 46. Rxb5 {[%emt 0:00:00]} Rxg6 {[%emt 0:01:22]} 47. Rb7+ {[%emt 0:00:00]} Ke8 {[%emt 0:04:19]} 48. Rh7 {[%emt 0:00:00]} Rg2 {[%emt 0:00:55]} 49. Rxh4 {[%emt 0:00:00]} Rxa2 {[%emt 0:00:18]} 50. Kd5 {[%emt 0:00:00]} Rb2 {[%emt 0:00:58]} 51. Ke6 {[%emt 0:00:00]} Kd8 {[%emt 0:11:47]} 52. Rd4+ {[%emt 0:00:00]} Kc8 {[%emt 0:00:00]} 53. Rd3 {[%emt 0:00:00]} Re2 {[%emt 0:00:00]} 54. h4 {[%emt 0:00:00]} Rh2 {[%emt 0:00:00]} 55. Rd5 {[%emt 0:00:00]} Rxh4 {[%emt 0:00:00]} 56. Rxa5 {[%emt 0:00:00]} Rh6+ {[%emt 0:00:00]} 57. Kd5 {[%emt 0:00:00]} Rb6 {[%emt 0:00:00]} 58. e6 {[%emt 0:00:00]} Kd8 {[%emt 0:00:00]} 59. Kc4 {[%emt 0:03:34]} Rxe6 {[%emt 0:00:00]} 60. Rc5 {[%emt 0:00:16]} Re7 {[%emt 0:00:16]} 61. Kb5 {[%emt 0:01:51]} Rb7+ {[%emt 0:00:46]} 62. Ka4 {[%emt 0:00:44]} Rc7 {[%emt 0:01:06]} 63. Rxc7 {[%emt 0:03:19]} Kxc7 {[%emt 0:00:13]} 64. Ka5 {[%emt 0:00:02]} Kc6 {[%emt 0:01:33]} 65. b4 {[%emt 0:01:46]} Kc7 {[%emt 0:00:46]} 66. Ka6 {[%emt 0:00:15]} Kb8 {[%emt 0:00:21]} 67. Kb6 {[%emt 0:00:16]} Ka8 {[%emt 0:00:14]} 68. Kc7 {[%emt 0:00:11]} Ka7 {[%emt 0:00:07]} 69. b5 {[%emt 0:02:11]} Ka8 {[%emt 0:00:16]} 70. Kb6 {[%emt 0:00:14]} Kb8 {[%emt 0:00:07]} 71. Ka6 {[%emt 0:00:06]} Kc7 {[%emt 0:00:32]} 72. Ka7 {[%emt 0:00:16]} Kd6 {[%emt 0:00:12]} 73. b6 {[%emt 0:00:05]} Kd5 {[%emt 0:00:10]} 74. b7 {[%emt 0:00:08]} Ke4 {[%emt 0:00:11]} 75. b8=Q {[%emt 0:00:20]} Kf3 {[%emt 0:00:11]} 76. Qe5 {[%emt 0:00:07]} Kg2 {[%emt 0:00:05]} 77. Qf4 {[%emt 0:00:10]} Kh1 {[%emt 0:00:09]} 78. Qg4 {[%emt 0:00:08]} Kh2 {[%emt 0:00:07]} 79. Kb6 {[%emt 0:00:05]} Kh1 {[%emt 0:00:06]} 80. Kc5 {[%emt 0:00:06]} Kh2 {[%emt 0:00:06]} 81. Kd4 {[%emt 0:00:20]} Kh1 {[%emt 0:00:07]} 82. Ke3 {[%emt 0:00:07]} Kh2 {[%emt 0:00:11]} 83. Kf2 {[%emt 0:00:06]} Kh1 {[%emt 0:00:05]} 84. Qg1# {[%emt 0:00:12]} 1-0

[Event "FIDE WCCC Open-08 2024"]
[Site "Montesilvano"]
[Date "2024.11.25"]
[Round "10.21"]
[White "Jia, Zining (Matthew)"]
[Black "Vo, Daniel"]
[Result "1/2-1/2"]
[Annotator "NA RC"]
[ECO "B47"]
[WhiteElo "1550"]
[BlackElo "1711"]
[PlyCount "144"]
[EventDate "2024.11.18"]
[EventType "swiss"]
[EventCountry "ITA"]
[SourceTitle "playchess.com"]
[Source "ChessBase"]
[SourceQuality "1"]
[TimeControl "5400+30"]

1. e4 {[%emt 0:00:01]} c5 {[%emt 0:00:15]} 2. Nf3 {[%emt 0:00:08]} e6 {[%emt 0:00:44]} 3. d4 {[%emt 0:00:11]} cxd4 {[%emt 0:00:24]} 4. Nxd4 {[%emt 0:00:07]} Nc6 {[%emt 0:00:11]} 5. Nc3 {[%emt 0:00:07]} a6 {[%emt 0:00:17]} 6. g3 {[%emt 0:00:06]} Qc7 {[%emt 0:00:34]} 7. Bg2 {[%emt 0:00:08]} Nf6 {[%emt 0:00:52]} 8. O-O {[%emt 0:00:33]} Be7 {[%emt 0:01:06]} 9. Kh1 {[%emt 0:00:37]} O-O {[%emt 0:03:32]} 10. Be3 {[%emt 0:06:44]} d6 {[%emt 0:01:08]} 11. Nde2 {[%emt 0:00:56]} Ne5 {[%emt 0:02:59]} 12. Bd4 {[%emt 0:01:37]} b5 {[%emt 0:01:55]} 13. f4 {[%emt 0:01:02]} Nc6 {[%emt 0:03:17]} 14. Bg1 {[%emt 0:01:59]} Bb7 {[%emt 0:00:46]} 15. a3 {[%emt 0:00:50]} Rfd8 {[%emt 0:00:59]} 16. Qc1 {[%emt 0:01:34]} Rac8 {[%emt 0:05:36]} 17. Qe3 {[%emt 0:00:48]} Nd7 {[%emt 0:05:28]} 18. f5 {[%emt 0:01:06]} Bf6 {[%emt 0:06:18]} 19. fxe6 {[%emt 0:03:10]} fxe6 {[%emt 0:00:28]} 20. Bh3 {[%emt 0:02:21]} Nf8 {[%emt 0:02:22]} 21. Qf2 {[%emt 0:03:50]} Ne5 {[%emt 0:10:06]} 22. Nd4 {[%emt 0:15:41]} Qc4 {[%emt 0:03:32]} 23. Bg2 {[%emt 0:08:16]} Nc6 {[%emt 0:06:31]} 24. Nde2 {[%emt 0:02:07]} Ne5 {[%emt 0:43:10]} 25. Rad1 {[%emt 0:06:13]} Qc7 {[%emt 0:00:00]} 26. b3 {[%emt 0:03:40]} h5 {[%emt 0:00:00]} 27. Qb6 {[%emt 0:03:14]} Qxb6 {[%emt 0:00:00]} 28. Bxb6 {[%emt 0:01:18]} Rd7 {[%emt 0:00:00]} 29. Bd4 {[%emt 0:00:38]} Rdc7 {[%emt 0:00:00]} 30. h3 {[%emt 0:00:35]} Nfd7 {[%emt 0:00:00]} 31. h4 {[%emt 0:02:41]} Nf7 {[%emt 0:00:00]} 32. Rf3 {[%emt 0:04:51]} Bxd4 {[%emt 0:00:00]} 33. Rxd4 {[%emt 0:00:11]} Nde5 {[%emt 0:00:00]} 34. Re3 {[%emt 0:01:32]} Ng4 {[%emt 0:00:00]} 35. Rf3 {[%emt 0:00:19]} Nfe5 {[%emt 0:00:00]} 36. Rf1 {[%emt 0:00:12]} Ne3 {[%emt 0:00:00]} 37. Rf2 {[%emt 0:05:04]} Rc6 {[%emt 0:00:00]} 38. Rd2 {[%emt 0:01:45]} Nxg2 {[%emt 0:00:00]} 39. Kxg2 {[%emt 0:00:34]} Nf7 {[%emt 0:00:00]} 40. Rf3 {[%emt 0:00:38]} Ne5 {[%emt 0:00:00]} 41. Re3 {[%emt 0:00:09]} Kf7 {[%emt 0:00:00]} 42. Kf1 {[%emt 0:00:45]} Ke7 {[%emt 0:00:21]} 43. Ke1 {[%emt 0:00:44]} Rb6 {[%emt 0:00:56]} 44. Kd1 {[%emt 0:03:33]} a5 {[%emt 0:00:36]} 45. Rd4 {[%emt 0:01:16]} b4 {[%emt 0:01:26]} 46. axb4 {[%emt 0:01:46]} Rxb4 {[%emt 0:00:33]} 47. Kc1 {[%emt 0:02:17]} Ng4 {[%emt 0:01:36]} 48. Rf3 {[%emt 0:01:38]} e5 {[%emt 0:03:31]} 49. Nd5+ {[%emt 0:01:53]} Bxd5 {[%emt 0:00:23]} 50. Rxb4 {[%emt 0:00:06]} axb4 {[%emt 0:00:27]} 51. exd5 {[%emt 0:00:08]} Rc5 {[%emt 0:00:17]} 52. Rf5 {[%emt 0:03:55]} Nf6 {[%emt 0:00:27]} 53. Rg5 {[%emt 0:01:15]} Kf7 {[%emt 0:00:17]} 54. Kb2 {[%emt 0:01:10]} Rxd5 {[%emt 0:00:49]} 55. Rf5 {[%emt 0:00:48]} g6 {[%emt 0:00:44]} 56. Rf3 {[%emt 0:00:32]} Ke6 {[%emt 0:00:43]} 57. Re3 {[%emt 0:00:14]} Rc5 {[%emt 0:00:55]} 58. Nf4+ {[%emt 0:00:33]} Kf7 {[%emt 0:00:49]} 59. Nh3 {[%emt 0:01:13]} Ke7 {[%emt 0:00:46]} 60. Ng5 {[%emt 0:00:07]} Rc8 {[%emt 0:00:53]} 61. Nf3 {[%emt 0:02:35]} Ng4 {[%emt 0:00:36]} 62. Re4 {[%emt 0:00:06]} Rb8 {[%emt 0:00:15]} 63. Rc4 {[%emt 0:00:59]} Rb7 {[%emt 0:00:25]} 64. Ng5 {[%emt 0:03:17]} Ne3 {[%emt 0:00:57]} 65. Rc8 {[%emt 0:00:40]} Nf5 {[%emt 0:00:41]} 66. Rg8 {[%emt 0:01:09]} Kf6 {[%emt 0:00:26]} 67. Rf8+ {[%emt 0:00:07]} Kg7 {[%emt 0:00:46]} 68. Ne6+ {[%emt 0:00:17]} Kh6 {[%emt 0:00:17]} 69. Ng5 {[%emt 0:00:28]} Kg7 {[%emt 0:00:50]} 70. Ne6+ {[%emt 0:00:06]} Kh6 {[%emt 0:00:19]} 71. Ng5 {[%emt 0:00:06]} Kg7 {[%emt 0:00:20]} 72. Ne6+ {[%emt 0:00:15]} Kh6 {[%emt 0:00:11]} 1/2-1/2